bitfinex/quotes_BTCUSD_20251224
["timestamp","ask_amount","ask_price","bid_price","bid_amount"]
[1766590131864,0.21655,86786.0,86778.0,0.08074146]
[1766590132078,0.21655,86786.0,86779.0,0.06914114]
[1766590132291,0.21655,86786.0,86780.0,0.01152339]
[1766590132489,0.21655,86786.0,86779.0,0.06914114]
[1766590132910,0.0115214,86795.0,86702.0,0.34882559]
[1766590132911,0.01152418,86774.0,86760.0,0.0004]
[1766590133145,0.21655,86769.0,86760.0,0.0004]
[1766590133383,0.01152418,86774.0,86760.0,0.0004]
[1766590133603,0.0116,86776.0,86764.0,0.01152551]
[1766590133818,0.0116,86778.0,86774.0,0.00055]
[1766590134041,0.01152379,86777.0,86774.0,0.00055]
[1766590134244,0.01152418,86774.0,86764.0,0.00010644]
[1766590134454,0.0116,86778.0,86764.0,0.00010644]
[1766590134455,0.0116,86778.0,86764.0,0.01163195]
[1766590134668,0.02312365,86778.0,86764.0,0.01163195]
[1766590134884,0.01152379,86777.0,86764.0,0.01163195]
[1766590135088,0.01152392,86776.0,86764.0,0.00010644]
[1766590135295,0.01152432,86773.0,86764.0,0.00010644]
[1766590135726,0.06914678,86772.0,86764.0,0.00010644]
[1766590135984,0.01152485,86769.0,86764.0,0.00010644]
[1766590136162,0.01152458,86771.0,86764.0,0.00010644]
[1766590136363,0.0116,86778.0,86764.0,0.00010644]
[1766590136568,0.0116,86778.0,86771.0,0.00055]
[1766590137132,0.0116,86778.0,86767.0,0.01152511]
[1766590137347,0.01152379,86777.0,86764.0,0.01163195]
[1766590137778,0.0116,86778.0,86765.0,0.01152538]
[1766590137997,0.0116,86778.0,86764.0,0.05773369]
[1766590137998,0.02312365,86778.0,86764.0,0.01163195]
[1766590138212,0.0116,86779.0,86766.0,0.06915121]
[1766590138432,0.0116,86779.0,86764.0,0.01163195]
[1766590138433,0.01152379,86777.0,86765.0,0.01152538]
[1766590138822,0.01137095,86778.0,86765.0,0.06915226]
[1766590139048,0.08074117,86779.0,86765.0,0.01152538]
[1766590139239,0.01152379,86777.0,86764.0,0.06925933]
[1766590139411,0.01152365,86778.0,86764.0,0.00010644]
[1766590139621,0.06914203,86778.0,86765.0,0.01152538]
[1766590139830,0.01152365,86778.0,86766.0,0.01152525]
[1766590140040,0.08074118,86779.0,86766.0,0.01152525]
[1766590140237,0.26690895,86777.0,86764.0,0.00010644]
[1766590140475,0.20929,86775.0,86764.0,0.00010644]
[1766590140676,0.20929,86775.0,86766.0,0.01152525]
[1766590140859,0.0116,86779.0,86775.0,0.00055]
[1766590141068,0.0116,86779.0,86767.0,0.01152511]
[1766590141243,0.0116,86779.0,86768.0,0.01152498]
[1766590141593,0.0116,86779.0,86770.0,0.01152472]
[1766590141743,0.05762037,86775.0,86766.0,0.0116]
[1766590141947,0.20929,86774.0,86766.0,0.0116]
[1766590142332,0.20929,86772.0,86765.0,0.0116]
[1766590142536,0.20929,86770.0,86765.0,0.0116]
[1766590142832,0.05762638,86766.0,86760.0,0.0004]
[1766590143008,0.20929,86767.0,86760.0,0.0004]
[1766590143343,0.20929,86767.0,86764.0,4.4e-07]
[1766590143601,0.22081511,86767.0,86764.0,4.4e-07]
[1766590143952,0.20929,86767.0,86764.0,4.4e-07]
[1766590144602,0.22081511,86767.0,86764.0,4.4e-07]
[1766590144763,0.05762692,86765.0,86764.0,4.4e-07]
[1766590144966,0.05762626,86766.0,86764.0,4.4e-07]
[1766590145167,0.22081511,86767.0,86764.0,4.4e-07]
[1766590145680,0.20929,86767.0,86764.0,4.4e-07]
[1766590145883,0.2094,86776.0,86764.0,4.4e-07]
[1766590146087,0.20929,86773.0,86764.0,4.4e-07]
[1766590146306,0.01152458,86771.0,86764.0,4.4e-07]
[1766590146508,0.01152511,86767.0,86764.0,4.4e-07]
[1766590146685,0.01152498,86768.0,86764.0,4.4e-07]
[1766590147098,0.01152472,86770.0,86764.0,4.4e-07]
[1766590147423,0.01152498,86768.0,86764.0,4.4e-07]
[1766590147578,0.06914971,86769.0,86764.0,4.4e-07]
[1766590148078,0.01152472,86770.0,86764.0,4.4e-07]
[1766590148526,0.20929,86771.0,86770.0,0.000106]
[1766590148730,0.20929,86771.0,86764.0,4.4e-07]
[1766590149580,0.22081458,86771.0,86764.0,4.4e-07]
[1766590149782,0.01152498,86768.0,86764.0,4.4e-07]
[1766590149978,0.20929,86768.0,86764.0,4.4e-07]
[1766590150295,0.01152445,86772.0,86764.0,4.4e-07]
[1766590150500,0.20929,86773.0,86764.0,4.4e-07]
[1766590151657,0.2204272,86773.0,86764.0,4.4e-07]
[1766590152052,0.20890288,86773.0,86764.0,4.4e-07]
[1766590152470,0.20879688,86773.0,86764.0,4.4e-07]
[1766590153039,0.01152365,86778.0,86764.0,4.4e-07]
[1766590153040,0.01152272,86785.0,86771.0,0.01152458]
[1766590153250,0.0277907,86787.0,86771.0,0.01152458]
[1766590153464,0.01152286,86784.0,86772.0,0.01152445]
[1766590153628,0.01152312,86782.0,86770.0,0.01152472]
[1766590154321,0.06913954,86781.0,86769.0,0.01152485]
[1766590154535,0.06913954,86781.0,86768.0,0.06914989]
[1766590154743,0.01152272,86785.0,86772.0,0.05762174]
[1766590154891,0.01152272,86785.0,86772.0,0.0116]
[1766590154892,0.0691377,86784.0,86772.0,0.0116]
[1766590155094,0.0691377,86784.0,86772.0,0.02312445]
[1766590155298,0.01152286,86784.0,86772.0,0.02312445]
[1766590155498,0.06913646,86785.0,86773.0,0.01152432]
[1766590155698,0.01152272,86785.0,86773.0,0.01152432]
[1766590155902,0.01152286,86784.0,86772.0,0.08074665]
[1766590156169,0.08073689,86786.0,86773.0,0.06914579]
[1766590156320,0.08073689,86786.0,86774.0,0.01152418]
[1766590156523,0.0116,86786.0,86775.0,0.01152405]
[1766590156722,0.02312259,86786.0,86774.0,0.06914512]
[1766590157047,0.0116,86786.0,86775.0,0.01152405]
[1766590157220,0.06913636,86785.0,86772.0,0.08074663]
[1766590157545,0.0807361,86786.0,86773.0,0.01152432]
[1766590157844,0.0807361,86786.0,86774.0,0.01152418]
[1766590158004,0.01152339,86780.0,86772.0,0.0116]
[1766590158419,0.01152325,86781.0,86772.0,0.0116]
[1766590158614,0.06913962,86781.0,86772.0,0.0116]
[1766590158819,0.01152325,86781.0,86772.0,0.0116]
[1766590159015,0.27842644,86785.0,86772.0,0.0116]
[1766590159243,0.20929,86798.0,86785.0,0.00055]
[1766590159444,0.01152113,86797.0,86783.0,0.0116]
[1766590159767,0.20929,86797.0,86783.0,0.08073733]
[1766590159942,0.01152126,86796.0,86785.0,0.01152272]
[1766590160145,0.20929,86797.0,86791.0,0.06913157]
[1766590160366,0.0116,86798.0,86789.0,0.01152219]
[1766590160571,0.0116,86798.0,86790.0,0.01152206]
[1766590160774,0.00011,86799.0,86795.0,0.0115214]
[1766590160982,0.20929,86812.0,86804.0,0.0115202]
[1766590161209,0.22089,86812.0,86799.0,0.23041697]
[1766590161501,0.22124586,86812.0,86802.0,0.01152047]
[1766590161791,0.22124586,86812.0,86801.0,0.05760259]
[1766590162084,0.22124586,86812.0,86802.0,0.06912266]
[1766590162286,0.01195586,86812.0,86807.0,0.0115198]
[1766590162787,0.00035586,86812.0,86807.0,0.0115198]
[1766590162996,0.00035586,86812.0,86808.0,0.01151967]
[1766590163203,0.00035586,86812.0,86805.0,0.01152007]
[1766590163414,0.00035586,86812.0,86804.0,0.06912116]
[1766590163415,0.0116,86819.0,86812.0,0.000355]
[1766590163609,0.00010667,86819.0,86811.0,0.06911544]
[1766590163906,0.00010667,86819.0,86816.0,0.06911135]
[1766590164309,0.00010667,86819.0,86815.0,0.01151874]
[1766590164469,6.7e-07,86819.0,86815.0,0.01151874]
[1766590164681,6.7e-07,86819.0,86812.0,0.01151914]
[1766590165081,6.7e-07,86819.0,86814.0,0.01151887]
[1766590165507,6.7e-07,86819.0,86813.0,0.00642723]
[1766590166018,6.7e-07,86819.0,86814.0,0.01151887]
[1766590166223,6.7e-07,86819.0,86813.0,0.00642723]
[1766590166423,6.7e-07,86819.0,86812.0,0.01151914]
[1766590166660,0.0116,86823.0,86812.0,0.01151914]
[1766590167083,0.0116,86823.0,86813.0,0.01151901]
[1766590167228,0.08697163,86828.0,86814.0,0.01151887]
[1766590167432,0.07545461,86828.0,86821.0,0.05758965]
[1766590167632,0.07545461,86828.0,86821.0,0.00010667]
[1766590168443,1.88e-06,86833.0,86821.0,0.00010667]
[1766590169249,0.19519,86831.0,86821.0,0.00010667]
[1766590169461,0.19519,86829.0,86817.0,0.01151848]
[1766590169671,0.19519,86828.0,86817.0,0.01151848]
[1766590169889,0.19519,86828.0,86816.0,0.00994789]
[1766590169890,0.000108,86817.0,86816.0,0.00994789]
[1766590170310,0.000108,86817.0,86816.0,0.06754096]
[1766590170530,0.19519,86827.0,86816.0,0.07905957]
[1766590170743,0.19519,86827.0,86818.0,0.01151834]
[1766590170968,0.19519,86827.0,86817.0,0.06911085]
[1766590171147,0.19519,86827.0,86818.0,0.06910952]
[1766590171356,0.19519,86827.0,86821.0,0.01151795]
[1766590171791,0.19519,86827.0,86819.0,0.06910912]
[1766590172014,0.00010659,86829.0,86820.0,0.01151808]
[1766590172245,0.00010659,86829.0,86816.0,0.0214665]
[1766590172487,0.00010659,86829.0,86823.0,0.01151768]
[1766590172742,0.00010659,86829.0,86826.0,0.01151728]
[1766590173234,0.00010659,86829.0,86826.0,0.06910361]
[1766590173472,5.9e-07,86829.0,86826.0,0.01151728]
[1766590174396,5.9e-07,86829.0,86828.0,0.05758511]
[1766590174647,5.9e-07,86829.0,86827.0,0.05758577]
[1766590174903,5.9e-07,86829.0,86828.0,0.05758511]
[1766590175150,5.9e-07,86829.0,86826.0,0.01151728]
[1766590175379,5.9e-07,86829.0,86828.0,0.05758511]
[1766590176484,0.06908865,86845.0,86832.0,0.06909891]
[1766590176694,0.01151476,86845.0,86832.0,0.06909891]
[1766590176913,0.06908811,86846.0,86833.0,0.01151635]
[1766590177136,0.0116,86848.0,86835.0,0.01151609]
[1766590177357,0.0116,86848.0,86830.0,0.66462499]
[1766590177358,0.19923,86847.0,86831.0,0.01151662]
[1766590177643,0.19923,86844.0,86832.0,0.0116]
[1766590177841,0.19923,86844.0,86833.0,0.01151635]
[1766590178041,0.19923,86844.0,86832.0,0.08069867]
[1766590178246,0.25680469,86844.0,86832.0,0.02311649]
[1766590178452,0.2107449,86844.0,86832.0,0.02311649]
[1766590178669,0.06909159,86842.0,86832.0,0.0116]
[1766590178825,0.06909159,86842.0,86833.0,0.0116]
[1766590179032,0.01151503,86843.0,86833.0,0.011385]
[1766590179583,0.21074503,86843.0,86833.0,0.011385]
[1766590179782,0.01151516,86842.0,86833.0,0.011385]
[1766590180145,0.26832035,86843.0,86833.0,0.011385]
[1766590180841,0.01151529,86841.0,86833.0,0.011385]
[1766590181048,0.01151516,86842.0,86833.0,0.011385]
[1766590181450,6.012e-05,86841.0,86834.0,0.0116]
[1766590181975,0.00055,86834.0,86823.0,0.01151768]
[1766590182301,0.19923,86834.0,86829.0,0.0116]
[1766590182526,0.19923,86832.0,86822.0,0.0116]
[1766590182811,0.19923,86832.0,86823.0,0.01151768]
[1766590183216,0.19923,86832.0,86825.0,0.01162742]
[1766590183567,0.19923,86832.0,86825.0,0.00011]
[1766590184319,6.012e-05,86830.0,86825.0,0.00011]
[1766590185980,0.0116,86835.0,86830.0,5.988e-05]
[1766590186250,0.21074503,86843.0,86832.0,0.01151649]
[1766590186251,0.0116,86838.0,86832.0,0.01151649]
[1766590186469,0.06919887,86845.0,86836.0,0.01151596]
[1766590186470,0.00011,86845.0,86836.0,0.01151596]
[1766590186685,0.19923,86851.0,86836.0,0.01151596]
[1766590186686,0.19923,86851.0,86837.0,0.02311582]
[1766590186898,0.19923,86851.0,86843.0,0.01151503]
[1766590187101,0.19923,86851.0,86841.0,0.05757649]
[1766590187314,0.19923,86851.0,86841.0,0.01151529]
[1766590187523,0.19923,86851.0,86839.0,0.01151556]
[1766590187719,0.19923,86851.0,86838.0,0.06909412]
[1766590187951,0.0115141,86850.0,86838.0,0.01151569]
[1766590188479,0.19923,86851.0,86838.0,0.01151569]
[1766590188711,0.26831388,86851.0,86838.0,0.06909363]
[1766590188910,0.21074397,86851.0,86838.0,0.06909363]
[1766590189459,0.19923,86851.0,86839.0,0.01151556]
[1766590189847,0.19923,86851.0,86841.0,0.01151529]
[1766590190258,0.19923,86851.0,86840.0,0.39863831]
[1766590190464,0.19923,86851.0,86840.0,0.41015374]
[1766590190836,0.19923,86851.0,86840.0,0.01151543]
[1766590191036,0.02311317,86857.0,86842.0,0.05757582]
[1766590191236,0.01170661,86857.0,86849.0,0.01151423]
[1766590191604,0.0116,86860.0,86847.0,0.42175281]
[1766590191735,0.0116,86860.0,86854.0,0.01151357]
[1766590191939,0.0116,86860.0,86853.0,0.06908205]
[1766590192295,0.0116,86860.0,86853.0,0.0115137]
[1766590192446,0.0116,86860.0,86852.0,0.06908297]
[1766590192640,0.0116,86860.0,86851.0,0.06908326]
[1766590192846,0.0116,86860.0,86850.0,0.0115141]
[1766590193242,0.0116,86860.0,86849.0,0.01151423]
[1766590193452,0.01151317,86857.0,86848.0,0.0116]
[1766590193763,0.05756529,86858.0,86848.0,0.0116]
[1766590193970,0.0116,86860.0,86852.0,0.01151383]
[1766590194304,0.0116,86860.0,86851.0,0.01151397]
[1766590194627,0.0116,86860.0,86850.0,0.0115141]
[1766590194754,0.0116,86860.0,86853.0,0.0575682]
[1766590194964,0.0116,86864.0,86855.0,0.0575666]
[1766590195165,0.0116,86864.0,86852.0,0.05756919]
[1766590195364,0.0116,86864.0,86852.0,0.06908302]
[1766590195765,0.01151224,86864.0,86852.0,0.06908302]
[1766590195997,0.01151224,86864.0,86852.0,0.01151383]
[1766590196398,0.0116,86865.0,86853.0,0.0115137]
[1766590196610,0.0116,86865.0,86854.0,0.01151357]
[1766590196802,0.0116,86865.0,86855.0,0.01151344]
[1766590197039,0.0116,86865.0,86855.0,0.06908046]
[1766590197240,0.0116,86865.0,86852.0,0.06908282]
[1766590197582,0.0116,86865.0,86853.0,0.06908217]
[1766590198037,0.0116,86865.0,86851.0,0.01151397]
[1766590198194,0.21437,86865.0,86853.0,0.0115137]
[1766590198398,0.21437,86865.0,86854.0,0.01151357]
[1766590198798,0.00011,86866.0,86855.0,0.39863831]
[1766590199148,0.04100119,86884.0,86876.0,0.01151065]
[1766590199362,1e-08,86879.0,86876.0,0.01151065]
[1766590199543,1e-08,86879.0,86873.0,0.01151105]
[1766590199755,1e-08,86879.0,86874.0,0.01151092]
[1766590199957,1e-08,86879.0,86873.0,0.01151105]
[1766590200359,1e-08,86879.0,86871.0,0.0116]
[1766590200523,1e-08,86879.0,86871.0,0.02311132]
[1766590200720,1e-08,86879.0,86876.0,0.01151065]
[1766590200919,1e-08,86879.0,86877.0,0.0116]
[1766590201118,1e-08,86879.0,86878.0,0.0116]
[1766590201407,1e-08,86879.0,86878.0,0.01105]
[1766590201604,0.01151039,86878.0,86844.0,0.34544515]
[1766590201813,0.01151158,86869.0,86853.0,0.0115137]
[1766590201966,0.06907038,86868.0,86855.0,0.01151344]
[1766590202167,0.01151198,86866.0,86853.0,0.06908209]
[1766590202407,0.21428211,86865.0,86854.0,0.0116]
[1766590202750,0.20277,86860.0,86854.0,0.00010661]
[1766590203620,0.06907113,86867.0,86854.0,0.01162018]
[1766590203821,0.01151039,86878.0,86860.0,0.01151277]
[1766590204035,0.02311052,86877.0,86864.0,0.01151224]
[1766590204348,1e-08,86879.0,86870.0,0.01151145]
[1766590204483,0.01151039,86878.0,86871.0,0.0116]
[1766590204710,0.01151039,86878.0,86872.0,0.0116]
[1766590204913,0.01151027,86879.0,86872.0,0.0116]
[1766590205123,0.01151052,86877.0,86872.0,0.0116]
[1766590205339,0.06906332,86877.0,86872.0,0.0116]
[1766590205519,0.01151052,86877.0,86872.0,0.0116]
[1766590205720,0.06906214,86879.0,86872.0,0.0116]
[1766590205934,1e-08,86879.0,86872.0,0.0116]
[1766590206164,7.2e-07,86887.0,86884.0,0.01150959]
[1766590206381,1.76e-06,86897.0,86893.0,0.0115084]
[1766590206622,1.76e-06,86899.0,86891.0,0.06914297]
[1766590206825,0.01150937,86899.0,86891.0,0.0116]
[1766590207026,0.011508,86896.0,86891.0,0.0116]
[1766590207230,0.01150827,86894.0,86891.0,0.0116]
[1766590207626,0.05754604,86887.0,86885.0,0.0116]
[1766590207877,0.06905536,86887.0,86884.0,0.0116]
[1766590208111,0.01150933,86886.0,86884.0,0.0116]
[1766590208330,0.01150999,86881.0,86873.0,0.0116]
[1766590208548,0.01150973,86883.0,86873.0,0.0116]
[1766590208549,0.0690592,86882.0,86873.0,0.0116]
[1766590208789,0.01151039,86878.0,86873.0,0.0116]
[1766590209037,0.20277,86872.0,86856.0,0.0115133]
[1766590209206,0.01151012,86880.0,86865.0,0.01151211]
[1766590209381,5.2e-07,86877.0,86868.0,0.01151171]
[1766590209967,5.2e-07,86877.0,86867.0,0.01151185]
[1766590210173,5.2e-07,86877.0,86867.0,0.06907063]
[1766590210388,5.2e-07,86877.0,86869.0,0.01151158]
[1766590210759,5.2e-07,86877.0,86870.0,0.01151145]
[1766590210974,5.2e-07,86877.0,86875.0,0.05755395]
[1766590211197,0.21437,86893.0,86880.0,0.06906075]
[1766590211397,0.21437,86893.0,86880.0,0.01151012]
[1766590211516,0.0115092,86887.0,86879.0,0.0116]
[1766590211720,0.21453222,86887.0,86879.0,0.0116]
[1766590211940,0.00025302,86887.0,86879.0,0.0691508]
[1766590212137,0.0231084,86893.0,86881.0,0.01150999]
[1766590212357,0.06905367,86889.0,86879.0,0.0116]
[1766590212533,0.01150893,86889.0,86879.0,0.0116]
[1766590212942,0.20277,86887.0,86871.0,0.01151132]
[1766590213147,0.00010661,86896.0,86894.0,0.05754137]
[1766590213343,0.0116,86905.0,86896.0,0.011508]
[1766590213548,0.0116,86907.0,86900.0,0.01150747]
[1766590213746,0.0116,86907.0,86897.0,0.01150787]
[1766590213941,0.0116,86907.0,86899.0,0.01150761]
[1766590214186,0.0116,86907.0,86897.0,0.01150787]
[1766590214371,0.0116,86907.0,86896.0,0.011508]
[1766590214576,0.20277,86908.0,86902.0,0.01150721]
[1766590214836,0.20277,86908.0,86902.0,0.06904325]
[1766590215129,0.01150681,86905.0,86894.0,0.0116]
[1766590215287,0.20277,86908.0,86895.0,0.01150814]
[1766590215489,0.27180918,86908.0,86894.0,0.0806496]
[1766590215665,0.27180918,86908.0,86895.0,0.05754065]
[1766590215867,0.21427642,86908.0,86896.0,0.011508]
[1766590216089,0.20277,86908.0,86901.0,0.01150734]
[1766590216294,8.5e-07,86911.0,86903.0,0.23014157]
[1766590216492,0.20297,86917.0,86906.0,0.01150668]
[1766590216493,0.0002,86917.0,86906.0,0.01150668]
[1766590216744,0.01150549,86915.0,86907.0,0.0116]
[1766590216872,0.01150562,86914.0,86907.0,0.0116]
[1766590217070,0.01150589,86912.0,86907.0,0.0116]
[1766590217280,0.06904024,86906.0,86892.0,0.06905108]
[1766590217478,0.01150681,86905.0,86895.0,0.03088999]
[1766590217683,0.01150695,86904.0,86895.0,0.03088999]
[1766590217890,0.01150747,86900.0,86894.0,0.03088999]
[1766590218108,0.01150787,86897.0,86891.0,0.0116]
[1766590218311,0.011508,86896.0,86891.0,0.0116]
[1766590218537,0.01150814,86895.0,86891.0,0.0116]
[1766590218719,0.06904731,86897.0,86885.0,0.03088999]
[1766590218918,0.00025299,86895.0,86886.0,0.01150933]
[1766590219247,0.00025299,86895.0,86884.0,0.02310959]
[1766590219248,0.00025299,86895.0,86884.0,0.06914799]
[1766590219439,0.00025299,86895.0,86888.0,0.01150906]
[1766590219643,0.00025299,86895.0,86887.0,0.06905487]
[1766590219644,0.00025299,86895.0,86889.0,0.01150893]
[1766590220085,0.00025299,86895.0,86892.0,0.01150853]
[1766590220241,0.20277,86910.0,86904.0,0.01150695]
[1766590220447,0.0116,86911.0,86904.0,0.01150695]
[1766590220643,0.0002,86917.0,86906.0,0.01150668]
[1766590220846,0.0116,86916.0,86906.0,0.01150668]
[1766590221007,0.0116,86916.0,86907.0,0.01150655]
[1766590221213,0.0116,86916.0,86900.0,0.01150747]
[1766590221214,0.06903295,86915.0,86900.0,0.01150747]
[1766590221415,0.21437,86916.0,86901.0,0.01150734]
[1766590221741,0.21437,86916.0,86904.0,0.01150695]
[1766590221948,0.01150602,86911.0,86899.0,0.03088999]
[1766590222156,0.28340235,86916.0,86902.0,0.01150721]
[1766590222383,0.21437,86916.0,86908.0,0.01150642]
[1766590222592,0.20277,86916.0,86909.0,0.01150628]
[1766590222748,0.0002,86918.0,86915.0,0.05752682]
[1766590222974,0.0116,86931.0,86923.0,0.06902658]
[1766590223190,0.0116,86931.0,86919.0,0.2300987]
[1766590223191,0.01170649,86931.0,86920.0,0.01150483]
[1766590223407,0.01170649,86931.0,86921.0,0.01150469]
[1766590223866,0.20277,86944.0,86932.0,0.01150324]
[1766590224088,0.20277,86944.0,86930.0,0.0115035]
[1766590224327,0.0116,86940.0,86930.0,0.00010649]
[1766590224549,0.22587218,86940.0,86930.0,0.00010649]
[1766590224760,0.27178474,86938.0,86930.0,0.00010649]
[1766590224974,0.01150284,86935.0,86930.0,0.00010649]
[1766590225408,0.01150297,86934.0,86930.0,0.00010649]
[1766590225650,0.01150311,86933.0,86930.0,0.00010649]
[1766590225853,0.00113809,86931.0,86930.0,0.00010649]
[1766590229488,0.23867,86947.0,86930.0,0.01170649]
[1766590229696,0.0116,86949.0,86936.0,0.05751353]
[1766590229896,0.01150139,86946.0,86933.0,0.01150311]
[1766590230099,0.01150178,86943.0,86930.0,0.02320999]
[1766590230311,0.25027,86948.0,86936.0,0.01150271]
[1766590230529,0.26177112,86948.0,86936.0,0.01150271]
[1766590230734,0.26177112,86948.0,86937.0,0.01150258]
[1766590230735,0.25027,86948.0,86937.0,0.01150258]
[1766590230946,0.25027,86948.0,86939.0,0.05751106]
[1766590231177,0.0116,86948.0,86937.0,0.01150258]
[1766590231381,0.0116,86948.0,86935.0,0.0276807]
[1766590231382,0.0116,86948.0,86941.0,0.01150205]
[1766590231594,0.01150152,86945.0,86936.0,0.0116]
[1766590231819,0.01150178,86943.0,86936.0,0.0116]
[1766590232026,0.06901077,86943.0,86936.0,0.0116]
[1766590232237,0.01150178,86943.0,86936.0,0.0116]
[1766590232446,0.01150152,86945.0,86936.0,0.0116]
[1766590233067,0.0116,86948.0,86937.0,0.01150258]
[1766590233282,0.01149993,86957.0,86941.0,0.01150205]
[1766590233496,0.01149977,86958.0,86953.0,0.01150046]
[1766590233726,0.0116,86962.0,86951.0,0.0276807]
[1766590233897,0.0574973,86961.0,86948.0,0.0116]
[1766590234103,0.01149954,86960.0,86948.0,0.0116]
[1766590234306,0.01150073,86951.0,86948.0,0.0116]
[1766590234507,0.05750758,86946.0,86940.0,0.03081605]
[1766590234662,0.01150112,86948.0,86939.0,0.0116]
[1766590235069,0.23867,86951.0,86939.0,0.0116]
[1766590235070,0.01150086,86950.0,86939.0,0.0116]
[1766590235299,0.23867,86947.0,86939.0,0.0116]
[1766590235503,0.25017165,86944.0,86930.0,0.04614649]
[1766590235703,0.05751156,86941.0,86933.0,0.0116]
[1766590235904,0.23867,86944.0,86939.0,0.01150231]
[1766590236104,0.23867,86956.0,86943.0,0.01150178]
[1766590236309,0.06900372,86952.0,86939.0,0.01150231]
[1766590236508,0.01150073,86951.0,86938.0,0.02306245]
[1766590236746,0.05750497,86949.0,86938.0,0.01156]
[1766590236911,0.01150073,86951.0,86938.0,0.02306245]
[1766590237224,0.01150086,86950.0,86938.0,0.02306245]
[1766590237392,0.01150112,86948.0,86938.0,0.01156]
[1766590237612,0.06900598,86949.0,86938.0,0.01156]
[1766590237846,0.01150125,86947.0,86938.0,0.01156]
[1766590237990,0.06900736,86948.0,86938.0,0.01156]
[1766590238192,0.23867,86956.0,86939.0,0.23004635]
[1766590238415,0.01156,86957.0,86956.0,0.05750034]
[1766590238726,0.01156,86959.0,86954.0,0.06900152]
[1766590238924,0.01156,86960.0,86955.0,0.0115002]
[1766590239133,0.2463,86966.0,86961.0,0.0114994]
[1766590239337,0.01156,86965.0,86962.0,0.06899539]
[1766590239515,0.01156,86965.0,86957.0,0.01149993]
[1766590239720,0.01156,86966.0,86959.0,0.01149967]
[1766590239930,0.25799808,86971.0,86958.0,0.01156]
[1766590239931,0.0002,86971.0,86958.0,0.01156]
[1766590240134,0.0002,86974.0,86967.0,0.06899136]
[1766590240343,0.01149649,86983.0,86951.0,0.25769382]
[1766590240344,0.01156,86978.0,86965.0,0.01149887]
[1766590240613,0.01156,86979.0,86965.0,0.00010649]
[1766590240921,0.01149716,86978.0,86965.0,0.00010649]
[1766590241159,0.06898361,86978.0,86965.0,0.01160536]
[1766590241415,0.00110562,86966.0,86965.0,0.01160536]
[1766590241623,0.00110562,86966.0,86965.0,0.00010649]
[1766590242773,0.0114961,86986.0,86969.0,0.01149834]
[1766590242976,0.01149689,86980.0,86967.0,0.01149861]
[1766590243153,0.01149689,86980.0,86969.0,0.01149834]
[1766590243378,0.01156,86982.0,86970.0,0.01149821]
[1766590243601,0.01156,86982.0,86974.0,0.01149768]
[1766590243802,0.06898277,86979.0,86966.0,0.01149874]
[1766590244006,0.01149702,86979.0,86965.0,0.00010649]
[1766590244220,0.01149689,86980.0,86965.0,0.00010649]
[1766590244450,0.01149742,86976.0,86965.0,0.00010649]
[1766590244656,0.01149782,86973.0,86965.0,0.00010649]
[1766590244865,0.01149808,86971.0,86965.0,0.00010649]
[1766590245068,0.06898703,86972.0,86965.0,0.00010649]
[1766590245286,0.01149848,86968.0,86965.0,0.00010649]
[1766590245491,0.05749311,86967.0,86965.0,0.00010649]
[1766590245832,0.05749373,86966.0,86965.0,0.00010649]
[1766590246427,0.01149887,86965.0,86962.0,0.01156]
[1766590246635,0.06899415,86964.0,86957.0,0.01156]
[1766590246832,0.01160526,86965.0,86957.0,0.01156]
[1766590247050,0.01149927,86962.0,86953.0,0.04118772]
[1766590247250,0.06899494,86963.0,86956.0,0.01156]
[1766590247251,0.01149914,86963.0,86956.0,0.01156]
[1766590247455,0.2463,86964.0,86956.0,0.01156]
[1766590247694,0.25779901,86964.0,86956.0,0.01156]
[1766590247877,0.2463,86964.0,86957.0,0.01149993]
[1766590248084,0.2463,86964.0,86956.0,0.01156]
[1766590248219,0.25779901,86964.0,86956.0,0.01156]
[1766590248637,0.06899568,86962.0,86956.0,0.01156]
[1766590248848,0.06899488,86963.0,86956.0,0.01156]
[1766590249071,0.01149967,86959.0,86956.0,0.01156]
[1766590249740,0.06899933,86959.0,86956.0,0.01156]
[1766590249961,0.01149967,86959.0,86956.0,0.01156]
[1766590250221,0.0115002,86955.0,86952.0,0.00011]
[1766590250578,0.0115002,86955.0,86940.0,0.01150218]
[1766590250579,0.2578002,86955.0,86942.0,0.02306192]
[1766590250761,0.2463,86955.0,86945.0,0.01150152]
[1766590250960,0.2463,86955.0,86947.0,0.0690069]
[1766590251191,0.2463,86955.0,86947.0,0.05]
[1766590251384,0.2463,86955.0,86942.0,0.02306192]
[1766590251385,0.01150112,86948.0,86942.0,0.01156]
[1766590251587,0.01150086,86950.0,86942.0,0.01156]
[1766590251788,0.06900518,86950.0,86942.0,0.01156]
[1766590251915,0.01150112,86948.0,86942.0,0.01156]
[1766590252357,0.01150099,86949.0,86942.0,0.01156]
[1766590252533,0.01150139,86946.0,86942.0,0.01156]
[1766590252736,0.01150218,86940.0,86934.0,0.07334158]
[1766590252933,0.31531275,86942.0,86934.0,0.01156]
[1766590253138,0.31531211,86942.0,86934.0,0.01156]
[1766590253344,0.2463,86941.0,86934.0,0.01156]
[1766590253771,0.2463,86941.0,86934.0,0.08057771]
[1766590254092,0.2463,86941.0,86934.0,0.01156]
[1766590254616,0.01150218,86940.0,86934.0,0.01156]
[1766590254832,0.01150178,86943.0,86907.0,0.01150655]
[1766590254833,0.2463,86929.0,86907.0,0.01150655]
[1766590255042,0.0115035,86930.0,86904.0,0.046036]
[1766590255043,0.01150536,86916.0,86904.0,0.046036]
[1766590255258,0.0301929,86918.0,86907.0,0.01156]
[1766590255457,0.2463,86913.0,86902.0,0.01156]
[1766590255762,0.2463,86913.0,86907.0,0.01150655]
[1766590255967,0.2463,86913.0,86904.0,0.00011]
[1766590256170,0.2463,86913.0,86907.0,0.00010649]
[1766590256500,0.2463,86909.0,86904.0,0.00011]
[1766590256743,0.05753362,86906.0,86904.0,0.00011]
[1766590256953,0.2463,86902.0,86892.0,0.01156]
[1766590257154,0.00031175,86909.0,86902.0,0.00055]
[1766590257358,0.01156,86911.0,86907.0,0.01150655]
[1766590257563,0.01156,86911.0,86908.0,0.01150642]
[1766590257765,0.01156,86914.0,86907.0,0.06903899]
[1766590257956,0.01156,86914.0,86905.0,0.01150681]
[1766590258109,0.01156,86914.0,86904.0,0.05753452]
[1766590258110,0.01156,86914.0,86904.0,0.06904147]
[1766590258313,0.01150522,86917.0,86905.0,0.01150681]
[1766590258519,0.25873522,86917.0,86905.0,0.01150681]
[1766590258741,0.25873522,86917.0,86906.0,0.01150668]
[1766590258944,0.24723,86917.0,86906.0,0.01150668]
[1766590259100,0.01150562,86914.0,86899.0,0.02306761]